bitfinex-derivatives/quotes_BNBF0:USTF0_20251027
["timestamp","ask_amount","ask_price","bid_price","bid_amount"]
[1761530209165,0.64610063,1153.1,1151.5,0.63291189]
[1761530211173,0.64610063,1153.0,1151.6,0.63291189]
[1761530211369,0.64610063,1153.1,1151.6,0.63291189]
[1761530211773,0.15103478,1152.9,1151.6,0.63291189]
[1761530212878,0.15103478,1152.9,1151.5,0.63291189]
[1761530213677,0.15103478,1152.9,1151.4,0.63291189]
[1761530213876,0.15103478,1152.9,1151.5,0.63291189]
[1761530215177,0.79713541,1152.9,1151.4,0.63291189]
[1761530224081,0.15103478,1152.9,1151.4,0.63291189]
[1761530224285,0.15103478,1152.9,1151.5,0.63291189]
[1761530228680,0.79713541,1152.9,1151.4,0.63291189]
[1761530228879,0.64610063,1152.8,1151.4,0.63291189]
[1761530229381,0.64610063,1152.7,1151.3,0.63291189]
[1761530229583,0.64610063,1152.7,1151.4,0.938]
[1761530230281,0.79713541,1152.9,1151.4,0.938]
[1761530230586,0.79713541,1152.9,1151.4,1.57091189]
[1761530231082,0.64610063,1152.8,1151.4,1.57091189]
[1761530231985,0.79713541,1152.9,1151.4,1.57091189]
[1761530232485,0.64610063,1152.8,1151.4,1.57091189]
[1761530233185,0.79713541,1152.9,1151.4,1.57091189]
[1761530233985,0.79713541,1152.9,1151.4,0.938]
[1761530234184,0.79713541,1152.9,1151.4,1.57091189]
[1761530235186,0.64610063,1152.8,1151.4,1.57091189]
[1761530235386,0.64610063,1152.7,1151.4,0.938]
[1761530240295,0.64610063,1152.8,1151.4,0.938]
[1761530240789,0.64610063,1152.6,1151.4,0.938]
[1761530241094,0.64610063,1152.5,1151.4,0.938]
[1761530250197,0.64610063,1152.3,1151.4,0.938]
[1761530250397,0.64610063,1152.4,1151.4,0.938]
[1761530250594,0.64610063,1152.3,1151.4,0.938]
[1761530251100,0.64610063,1152.2,1151.4,0.938]
[1761530251296,0.64610063,1152.1,1151.4,0.938]
[1761530252394,0.64610063,1152.2,1151.4,0.938]
[1761530257397,0.64610063,1152.3,1151.4,0.938]
[1761530261404,0.64610063,1152.4,1151.4,0.938]
[1761530262502,0.64610063,1152.5,1151.4,0.938]
[1761530262702,0.64610063,1152.6,1151.4,0.938]
[1761530264204,0.64610063,1152.5,1151.4,0.938]
[1761530264507,0.64610063,1152.6,1151.4,0.938]
[1761530265509,0.64610063,1152.7,1151.4,0.938]
[1761530266707,0.79713541,1152.9,1151.4,0.938]
[1761530266905,0.15103478,1152.9,1151.4,0.938]
[1761530275614,0.15103478,1152.9,1151.4,1.57091189]
[1761530275809,0.79713541,1152.9,1151.4,1.57091189]
[1761530276114,0.79713541,1152.9,1151.4,0.938]
[1761530276314,0.64610063,1152.8,1151.4,0.938]
[1761530276715,0.64610063,1152.8,1151.2,0.63291189]
[1761530279912,0.64610063,1152.8,1151.3,0.839]
[1761530281319,0.64610063,1152.7,1151.3,0.839]
[1761530281516,0.64610063,1152.8,1151.3,0.839]
[1761530281919,0.64610063,1152.7,1151.3,0.839]
[1761530282119,0.64610063,1152.6,1151.3,0.839]
[1761530290822,0.64610063,1152.7,1151.3,0.839]
[1761530291821,0.64610063,1152.6,1151.3,0.839]
[1761530293926,1.019356,1152.9,1151.3,0.839]
[1761530293927,0.64791492,1152.5,1151.3,0.839]
[1761530294126,0.15103478,1152.9,1151.3,0.839]
[1761530294127,0.64791492,1152.4,1151.3,0.839]
[1761530299830,0.64791492,1152.6,1151.3,0.839]
[1761530300029,0.64791492,1152.7,1151.3,0.839]
[1761530301929,0.64791492,1152.6,1151.3,0.839]
[1761530302226,0.64791492,1152.7,1151.3,0.839]
[1761530304829,0.64791492,1152.4,1151.3,0.839]
[1761530305229,0.64791492,1152.3,1151.3,0.839]
[1761530306429,0.64791492,1152.2,1151.3,0.839]
[1761530314338,0.64791492,1152.3,1151.3,0.839]
[1761530320538,1.45351658,1152.9,1151.3,0.839]
[1761530320539,0.64791492,1152.5,1151.3,0.839]
[1761530325545,0.64791492,1152.6,1151.3,0.839]
[1761530325847,0.64791492,1152.5,1151.3,0.839]
[1761530326045,0.64791492,1152.5,1150.4,0.78553333]
[1761530326246,0.64791492,1152.6,1150.4,0.78553333]
[1761530326545,0.64791492,1152.5,1150.4,0.78553333]
[1761530328651,0.64791492,1152.4,1150.4,0.78553333]
[1761530329652,0.64791492,1152.3,1150.4,0.78553333]
[1761530329850,0.64791492,1152.3,1150.5,0.827]
[1761530330548,0.64791492,1152.1,1150.5,1.46139228]
[1761530330753,0.64791492,1152.0,1150.5,1.46139228]
[1761530334453,0.64791492,1152.0,1150.6,0.63439228]
[1761530335556,0.64791492,1152.0,1150.5,1.46139228]
[1761530335755,0.64791492,1152.0,1150.6,0.63439228]
[1761530336749,0.64791492,1152.2,1150.5,0.827]
[1761530336955,0.64791492,1152.0,1150.5,0.827]
[1761530339057,0.64791492,1152.1,1150.5,0.827]
[1761530344067,0.64791492,1152.3,1150.5,0.827]
[1761530344968,0.64791492,1151.8,1150.5,0.827]
[1761530350865,0.64791492,1151.7,1150.5,0.827]
[1761530351167,0.64791492,1151.8,1150.5,0.827]
[1761530351467,0.64791492,1151.7,1150.5,0.827]
[1761530352366,0.64791492,1151.8,1150.5,0.827]
[1761530352569,0.64791492,1151.7,1150.5,0.827]
[1761530352772,0.64791492,1151.8,1150.5,0.827]
[1761530353374,0.64791492,1152.1,1150.5,0.827]
[1761530353574,0.64791492,1152.2,1150.5,0.827]
[1761530354472,0.64702468,1152.2,1150.5,0.827]
[1761530355075,0.64702468,1151.9,1150.5,0.827]
[1761530356872,0.64702468,1152.0,1150.5,0.827]
[1761530359076,0.64702468,1151.9,1150.5,0.827]
[1761530362478,0.64783151,1151.9,1150.5,0.827]
[1761530363179,0.64783151,1151.8,1150.5,0.827]
[1761530364879,0.64783151,1151.9,1150.5,0.827]
[1761530369181,0.64783151,1152.0,1150.5,0.827]
[1761530369481,0.64783151,1152.2,1150.5,0.827]
[1761530369979,0.64783151,1152.2,1150.5,1.46259299]
[1761530370782,0.64783151,1152.1,1150.5,0.827]
[1761530371079,0.64783151,1152.1,1150.5,1.46259299]
[1761530374684,0.64783151,1152.0,1150.6,0.63559299]
[1761530375384,0.64783151,1152.0,1150.7,0.63559299]
[1761530376885,0.64783151,1152.2,1150.6,0.63559299]
[1761530377081,0.64783151,1152.3,1150.7,0.63559299]
[1761530380890,0.64783151,1152.2,1150.7,0.63559299]
[1761530382492,0.64783151,1152.2,1150.8,0.63559299]
[1761530383993,0.64783151,1152.1,1150.8,0.63559299]
[1761530385291,0.64783151,1152.5,1150.5,0.827]
[1761530385497,0.64783151,1152.3,1150.5,0.827]
[1761530385796,0.64783151,1152.1,1150.5,0.827]
[1761530386295,0.64783151,1151.9,1150.6,0.63559299]
[1761530386491,0.64783151,1151.8,1150.6,0.63559299]
[1761530387198,0.64783151,1151.9,1150.5,0.63559299]
[1761530388799,0.64783151,1151.8,1150.4,0.63559299]
[1761530389897,0.64783151,1151.8,1150.5,0.804]
[1761530391199,0.64783151,1151.9,1150.5,0.804]
[1761530391502,0.64783151,1151.8,1150.5,0.804]
[1761530396807,0.64783151,1151.9,1150.5,0.804]
[1761530402910,0.64783151,1151.8,1150.5,0.804]
[1761530403111,0.64783151,1151.7,1150.5,0.804]
[1761530403312,0.64783151,1151.6,1150.5,0.804]
[1761530407720,0.64783151,1151.7,1150.5,0.804]
[1761530408517,0.64783151,1151.6,1150.5,0.804]
[1761530409722,0.64783151,1151.5,1150.5,0.804]
[1761530410418,0.64783151,1151.3,1150.5,0.804]
[1761530411021,0.64783151,1151.2,1150.5,0.804]
[1761530411418,0.64783151,1151.1,1150.5,0.804]
[1761530412023,0.64783151,1151.4,1150.5,0.804]
[1761530412217,0.15126587,1151.0,1150.5,0.804]
[1761530412417,0.64783151,1151.4,1150.5,0.804]
[1761530413720,0.15126193,1151.2,1150.5,0.804]
[1761530417629,0.79909344,1151.2,1150.5,0.804]
[1761530417830,0.15126193,1151.2,1150.5,0.804]
[1761530418031,0.79909344,1151.2,1150.5,0.804]
[1761530418230,0.15126193,1151.2,1150.5,0.804]
[1761530418627,0.64783151,1151.0,1150.5,0.804]
[1761530419128,0.64783151,1151.1,1150.5,0.804]
[1761530419326,0.64783151,1151.0,1150.5,0.804]
[1761530420729,0.15126193,1151.2,1150.5,0.804]
[1761530422034,0.64783151,1150.8,1150.5,0.804]
[1761530422232,0.64783151,1150.9,1150.5,0.804]
[1761530422433,0.64783151,1150.7,1150.5,0.804]
[1761530423335,0.64783151,1150.8,1150.5,0.804]
[1761530423835,0.64783151,1150.9,1150.5,0.804]
[1761530424134,0.64783151,1151.0,1150.5,0.804]
[1761530424330,0.64783151,1151.1,1150.5,0.804]
[1761530425133,0.64783151,1151.0,1150.5,0.804]
[1761530425734,0.64783151,1151.1,1150.5,0.804]
[1761530426438,0.64783151,1151.0,1150.5,0.804]
[1761530426637,0.64783151,1150.9,1150.5,0.804]
[1761530426838,0.64783151,1151.0,1150.5,0.804]
[1761530427237,0.64783151,1151.1,1150.5,0.804]
[1761530428238,0.15126193,1151.2,1150.5,0.804]
[1761530428239,0.79909344,1151.2,1150.5,0.804]
[1761530429239,0.15126193,1151.2,1150.5,0.804]
[1761530429637,0.79909344,1151.2,1150.5,0.804]
[1761530429942,0.64783151,1151.0,1150.5,0.804]
[1761530431041,0.64783151,1151.1,1148.5,0.15133692]
[1761530431436,0.64783151,1151.0,1148.5,0.15133692]
[1761530431640,0.64783151,1151.1,1148.5,0.15133692]
[1761530433141,0.64783151,1151.0,1148.5,0.78692991]
[1761530433340,0.64783151,1151.1,1148.5,0.15133692]
[1761530433537,0.15126193,1151.2,1148.6,0.796]
[1761530434037,0.64783151,1151.1,1148.6,0.796]
[1761530434437,0.64783151,1150.9,1148.6,0.796]
[1761530436244,0.64783151,1150.7,1148.6,0.796]
[1761530436443,0.15126193,1151.2,1148.6,0.796]
[1761530436444,0.64783151,1150.8,1148.6,0.796]
[1761530437743,0.64783151,1150.7,1148.6,0.796]
[1761530438640,0.64783151,1151.0,1148.6,0.796]
[1761530439240,0.64783151,1151.1,1148.6,0.796]
[1761530439942,0.64783151,1150.9,1148.6,0.796]
[1761530440146,0.79909344,1151.2,1148.6,0.796]
[1761530440640,0.64783151,1151.1,1148.6,0.796]
[1761530441240,0.79909344,1151.2,1148.6,0.796]
[1761530441843,0.64783151,1151.1,1148.6,0.796]
[1761530442046,0.64783151,1151.0,1148.6,0.796]
[1761530442645,0.64783151,1150.8,1148.6,0.796]
[1761530444045,0.64783151,1150.7,1148.6,0.796]
[1761530444244,0.64783151,1150.9,1148.6,0.796]
[1761530444548,0.15126193,1151.2,1148.6,0.796]
[1761530446350,0.79909344,1151.2,1148.6,0.796]
[1761530447251,0.64783151,1151.1,1148.6,0.796]
[1761530450251,0.15126193,1151.2,1148.6,0.796]
[1761530455157,0.79909344,1151.2,1148.6,0.796]
[1761530457353,0.64783151,1151.0,1148.6,0.796]
[1761530457854,0.64783151,1150.9,1148.6,0.796]
[1761530459455,0.64783151,1150.8,1148.6,0.796]
[1761530463061,0.64783151,1150.7,1148.6,0.796]
[1761530463361,0.64783151,1150.6,1148.6,0.796]
[1761530464262,0.64783151,1150.8,1148.6,0.796]
[1761530465461,0.64783151,1150.7,1148.6,0.796]
[1761530465862,0.64783151,1150.8,1148.6,0.796]
[1761530466359,0.64783151,1150.7,1148.6,0.796]
[1761530468062,0.64783151,1150.6,1148.6,0.796]
[1761530468657,0.64783151,1151.0,1148.6,0.796]
[1761530469262,0.64783151,1150.9,1148.6,0.796]
[1761530470359,0.64783151,1150.8,1148.6,0.796]
[1761530471664,0.64783151,1150.8,1148.3,0.7870109]
[1761530472362,0.64783151,1150.7,1148.3,0.7870109]
[1761530472762,0.86832122,1151.1,1148.3,0.7870109]
[1761530473262,0.86832122,1151.0,1148.4,0.63559299]
[1761530473967,0.86832122,1150.8,1148.5,0.63559299]
[1761530475164,0.86832122,1150.6,1148.6,0.63559299]
[1761530475367,0.86832122,1150.6,1148.7,0.744]
[1761530476368,0.86832122,1150.5,1148.7,0.744]
[1761530478369,0.86832122,1150.5,1148.7,1.37959299]
[1761530478868,0.86832122,1150.9,1148.7,0.744]
[1761530479063,0.86832122,1151.0,1148.7,0.744]
[1761530479268,0.86832122,1151.0,1148.7,1.37959299]
[1761530480268,0.86832122,1150.9,1148.7,1.37959299]
[1761530480767,0.86832122,1151.0,1148.7,1.37959299]
[1761530481272,0.86832122,1150.9,1148.7,1.37959299]
[1761530481873,0.86832122,1150.8,1148.8,0.63559299]
[1761530482274,0.86832122,1150.7,1148.9,0.63559299]
[1761530487484,0.86832122,1150.5,1149.1,0.63559299]
[1761530488386,0.86832122,1150.6,1149.0,0.63559299]
[1761530489387,0.86832122,1150.6,1149.1,0.63559299]
[1761530489688,0.86832122,1150.6,1149.0,0.63559299]
[1761530491190,0.86832122,1151.0,1148.9,0.63559299]
[1761530493389,0.86832122,1151.1,1149.0,0.63559299]
[1761530493693,0.86832122,1151.1,1148.9,0.63559299]
[1761530497494,0.86832122,1151.1,1148.9,0.63868944]
[1761530500497,0.86832122,1150.9,1149.0,0.63868944]
[1761530502296,0.86832122,1150.8,1149.0,0.63868944]
[1761530503398,0.86832122,1150.7,1149.1,0.63868944]
[1761530505100,0.86832122,1150.6,1149.1,0.63868944]
[1761530507603,0.86832122,1150.7,1149.1,0.63868944]
[1761530508202,0.86832122,1150.9,1149.0,0.63868944]
[1761530510009,0.15126193,1151.2,1148.9,0.63868944]
[1761530510407,0.15126193,1151.2,1149.0,0.63868944]
[1761530511204,0.86832122,1151.1,1149.0,0.63868944]
[1761530511408,1.01958315,1151.2,1149.1,0.63868944]
[1761530514809,0.86832122,1151.1,1149.1,0.63868944]
[1761530515607,0.86832122,1151.1,1149.2,0.63868944]
[1761530515812,0.86832122,1151.0,1149.2,0.63868944]
[1761530516009,0.86832122,1150.9,1149.3,0.63868944]
[1761530516214,0.86832122,1150.8,1149.3,0.63868944]
[1761530516513,0.86832122,1150.8,1149.1,0.63868944]
[1761530519514,0.86832122,1150.7,1149.1,0.63868944]
[1761530519811,0.86832122,1150.6,1149.2,0.63868944]
[1761530520010,0.86832122,1150.5,1149.1,0.63868944]
[1761530521313,0.86832122,1150.6,1149.1,0.63868944]
[1761530523215,0.86832122,1150.7,1149.1,0.63868944]
[1761530523416,0.86832122,1150.6,1149.1,0.63868944]
[1761530523618,0.86832122,1150.7,1149.1,0.63868944]
[1761530525617,0.86832122,1150.6,1149.1,0.63868944]
[1761530525821,0.86832122,1151.1,1148.9,0.63868944]
[1761530526720,0.86832122,1150.7,1149.2,0.63868944]
[1761530526921,0.86832122,1150.8,1149.3,0.63868944]
[1761530528723,0.86832122,1150.8,1149.5,0.63868944]
[1761530529327,0.86832122,1150.9,1149.5,0.63868944]
[1761530531026,0.86832122,1151.0,1149.5,0.63868944]
[1761530531326,1.45374373,1151.2,1149.7,0.63868944]
[1761530531327,1.01958315,1151.2,1149.7,0.63868944]
[1761530534724,0.15126193,1151.2,1149.4,0.63868944]
[1761530534935,0.15126193,1151.2,1149.6,0.63868944]
[1761530535133,0.15126193,1151.2,1149.5,0.63868944]
[1761530535734,0.15126193,1151.2,1149.6,1.26668944]
[1761530535936,0.15126193,1151.2,1149.6,0.628]
[1761530546238,0.15126193,1151.2,1149.6,1.26668944]
[1761530547539,0.15126193,1151.2,1149.7,0.63868944]
[1761530548444,0.15126193,1151.2,1149.6,1.26668944]
[1761530549141,0.15126193,1151.2,1149.6,0.628]
[1761530549343,0.15126193,1151.2,1149.6,1.26668944]
[1761530549545,0.15126193,1151.2,1149.6,0.628]
[1761530549840,0.15126193,1151.2,1149.8,0.63868944]
[1761530551345,0.15126193,1151.2,1149.7,0.63868944]
[1761530552141,0.15126193,1151.2,1149.6,1.26668944]
[1761530554646,0.15126193,1151.2,1149.7,0.63868944]
[1761530556042,0.15126193,1151.2,1149.6,1.26668944]
[1761530556346,0.15126193,1151.2,1149.6,0.628]
[1761530558749,0.15126193,1151.2,1149.6,1.26668944]
[1761530559548,0.15126193,1151.2,1149.6,0.628]
[1761530563954,0.15126193,1151.2,1149.6,1.26668944]
[1761530564757,0.15126193,1151.2,1149.6,0.628]
[1761530581366,0.15126193,1151.2,1149.6,1.26668944]
[1761530581565,1.01958315,1151.2,1149.6,0.628]
[1761530582170,0.86832122,1151.1,1149.6,0.628]
[1761530583771,0.15126193,1151.2,1149.6,0.628]
[1761530585671,0.15126193,1151.2,1149.8,0.63868944]
[1761530586267,0.15126193,1151.2,1149.9,0.63868944]
[1761530586869,0.15126193,1151.2,1150.0,0.63868944]
[1761530588270,0.15126193,1151.2,1150.1,0.63868944]
[1761530590174,0.15126193,1151.2,1150.2,0.63868944]
[1761530590379,0.15126193,1151.2,1150.3,0.711]
[1761530591380,0.86832122,1152.3,1150.6,0.63868944]
[1761530591583,0.15118307,1151.9,1150.7,0.63868944]
[1761530592480,0.15118307,1151.9,1150.8,0.63868944]
[1761530592685,0.15118307,1151.9,1150.7,0.63868944]
[1761530593885,0.15118307,1151.9,1150.7,0.63302023]
[1761530594080,0.86832122,1152.9,1150.7,0.63302023]
[1761530594382,0.1511148,1152.1,1150.8,0.63302023]
[1761530594782,0.86832122,1153.1,1150.8,0.63302023]
[1761530594981,0.15110824,1152.1,1150.8,0.63302023]
[1761530595184,0.86832122,1153.1,1150.7,0.63302023]
[1761530595585,0.15110824,1152.1,1150.7,0.63302023]
[1761530595882,0.86832122,1153.1,1150.7,0.63302023]
[1761530596084,0.15111152,1152.1,1150.7,0.63302023]
[1761530596385,0.86832122,1153.2,1150.7,0.63302023]
[1761530596682,0.15111152,1152.1,1150.7,0.63302023]
[1761530596885,0.86832122,1153.2,1150.7,0.63302023]
[1761530597185,2.170803,1154.8,1150.7,0.63302023]
[1761530597186,0.15110824,1152.1,1150.7,0.63302023]
[1761530597385,0.86832122,1153.3,1150.7,0.63302023]
[1761530597786,0.15110495,1152.1,1150.7,0.63302023]
[1761530598085,0.86832122,1153.3,1150.7,0.63302023]
[1761530598286,0.15110495,1152.1,1150.7,0.63302023]
[1761530598588,0.86832122,1153.3,1150.7,0.63302023]
[1761530598882,0.15110495,1152.1,1150.7,0.63302023]
[1761530599081,0.86832122,1153.3,1150.7,0.63302023]
[1761530599287,0.15110495,1152.1,1150.7,0.63302023]
[1761530599586,0.86832122,1153.3,1150.7,0.63302023]
[1761530599987,0.15110495,1152.1,1150.7,0.63302023]
[1761530600287,0.86832122,1153.9,1150.4,0.63302023]
[1761530600487,0.86832122,1153.9,1150.3,0.711]
[1761530600488,0.15109511,1152.2,1150.6,0.63302023]
[1761530600686,0.86832122,1154.0,1150.6,0.63302023]
[1761530601085,0.1510715,1152.3,1150.7,0.63302023]
[1761530601384,0.86832122,1153.8,1150.6,0.63302023]
[1761530601589,0.15107478,1152.3,1150.6,0.63302023]
[1761530601787,0.86832122,1153.8,1150.6,0.63302023]
[1761530601990,0.86832122,1153.7,1150.8,0.63302023]
[1761530602292,0.15107806,1152.3,1150.8,0.63302023]
[1761530602490,0.86832122,1153.7,1150.8,0.63302023]
[1761530602691,0.15107281,1153.0,1150.8,0.63302023]
[1761530605588,0.15107281,1153.0,1150.9,0.63302023]
[1761530606589,0.15107281,1153.0,1150.8,0.63302023]
[1761530611597,0.15107281,1153.0,1150.5,0.87279503]
[1761530611598,0.15107281,1153.0,1150.5,0.63302023]
[1761530611792,0.15107281,1153.0,1150.7,0.63302023]
[1761530612193,0.15107281,1153.0,1150.6,0.63302023]
[1761530612392,0.15107281,1153.0,1150.3,0.711]
[1761530612393,0.15107281,1153.0,1150.7,0.63302023]
[1761530616198,0.15107281,1153.0,1150.6,0.63302023]
[1761530616398,0.15107281,1153.0,1150.7,0.63302023]
[1761530616794,0.15107281,1153.0,1151.0,0.63302023]
[1761530618298,0.15107281,1153.0,1150.9,0.63302023]
[1761530625701,0.15107281,1153.0,1151.0,0.63302023]
[1761530626201,0.86832122,1155.5,1151.1,0.63302023]
[1761530626403,0.86832122,1155.3,1151.3,0.63302023]
[1761530626604,0.1509411,1153.4,1151.4,0.63302023]
[1761530626805,0.86832122,1155.4,1151.4,0.63302023]
[1761530627000,0.15092539,1153.4,1151.4,0.63302023]
[1761530627411,0.86832122,1155.4,1151.4,0.63302023]
[1761530627605,0.15092081,1153.5,1151.4,0.63302023]
[1761530628006,0.86832122,1155.4,1151.4,0.63302023]
[1761530628201,0.15092081,1153.5,1151.4,0.63302023]
[1761530628404,0.86832122,1155.5,1151.4,0.63302023]
[1761530628804,0.15091754,1153.5,1151.4,0.63302023]
[1761530629007,0.86832122,1155.5,1151.4,0.63302023]
[1761530629202,0.15091754,1153.5,1151.4,0.63302023]
[1761530629707,0.86832122,1155.5,1151.4,0.63302023]
[1761530629904,0.15091754,1153.5,1151.4,0.63302023]
[1761530630108,0.86832122,1155.5,1151.4,0.63302023]
[1761530630808,0.86832122,1155.4,1151.4,0.63302023]
[1761530631104,0.15091754,1154.5,1151.4,0.63302023]
[1761530637110,0.15091754,1154.5,1151.7,0.63302023]
[1761530639008,0.15091754,1154.5,1151.8,0.63302023]
[1761530640509,0.15091754,1154.5,1151.9,0.834]
[1761530644616,0.15091754,1154.5,1152.0,0.63302023]
[1761530646316,0.15091754,1154.5,1151.9,0.834]
[1761530646317,0.15091754,1154.5,1152.1,0.63302023]
[1761530646616,0.15091754,1154.5,1152.2,0.63302023]
[1761530647316,0.15091754,1154.5,1152.0,0.63302023]
[1761530647512,0.15091754,1154.5,1151.9,1.46702023]
[1761530649319,0.15091754,1154.5,1152.0,0.63302023]
[1761530650219,0.15091754,1154.5,1152.1,0.63302023]
[1761530651119,0.15091754,1154.5,1152.2,0.63302023]
[1761530651323,0.15091754,1154.5,1152.1,0.63302023]
[1761530654925,0.15091754,1154.5,1152.0,0.63302023]
[1761530655220,0.15091754,1154.5,1152.1,0.63302023]
[1761530655421,0.15091754,1154.5,1152.0,0.63302023]
[1761530656023,0.15091754,1154.5,1151.9,1.46702023]
[1761530657020,0.15091754,1154.5,1151.9,0.834]
[1761530659720,0.86832122,1154.4,1151.9,0.834]
[1761530660522,0.86832122,1154.3,1151.9,0.834]
[1761530660725,0.86832122,1154.2,1151.9,0.834]
[1761530661923,0.86832122,1154.3,1151.9,0.834]
[1761530662127,0.86832122,1154.2,1151.9,0.834]
[1761530662523,0.15091754,1154.5,1152.1,0.63302023]
[1761530664229,0.15091754,1154.5,1152.2,0.63302023]
[1761530666029,0.15091754,1154.5,1152.3,0.63302023]
[1761530666532,0.15091754,1154.5,1152.0,0.63302023]
[1761530667030,0.15091754,1154.5,1152.2,0.63302023]
[1761530667229,0.15091754,1154.5,1152.3,0.63302023]
[1761530669132,0.15091754,1154.5,1152.3,0.62850577]
[1761530671232,0.15091754,1154.5,1152.2,0.62850577]
[1761530671930,0.15091754,1154.5,1152.3,0.62850577]
[1761530672130,1.01923876,1154.5,1152.3,0.62850577]
[1761530675141,0.15091754,1154.5,1152.0,0.62850577]
[1761530675441,0.15091754,1154.5,1152.3,0.62850577]
[1761530676344,0.15091754,1154.5,1152.4,0.62850577]
[1761530676543,0.15091754,1154.5,1152.5,0.62850577]
[1761530676743,0.15091754,1154.5,1152.6,0.874]
[1761530677047,0.15091754,1154.5,1152.7,0.62850577]
[1761530677347,0.15091754,1154.5,1152.8,0.62850577]
[1761530679044,0.15091754,1154.5,1152.7,0.62850577]
[1761530680351,0.15091754,1154.5,1152.8,0.62850577]
[1761530681751,0.15091754,1154.5,1152.7,0.62850577]
[1761530681952,0.15091754,1154.5,1152.8,0.62850577]
[1761530682446,0.15091754,1154.5,1152.9,0.62850577]
[1761530683546,0.15091754,1154.5,1152.7,0.87279503]
[1761530683753,0.15091754,1154.5,1152.9,0.63009661]
[1761530684651,0.15091754,1154.5,1152.6,1.74679503]
[1761530684849,0.15091754,1154.5,1152.9,0.63041853]
[1761530685649,0.15091754,1154.5,1152.8,0.63041853]
[1761530686555,0.15091754,1154.5,1152.9,0.63041853]
[1761530689451,0.15091754,1154.5,1152.9,0.63014094]
[1761530691457,0.15091754,1154.5,1153.0,0.63014094]
[1761530692860,0.15091754,1154.5,1152.9,0.63014094]
[1761530693058,0.15091754,1154.5,1153.0,0.63014094]
[1761530694361,0.15091754,1154.5,1152.9,0.63014094]
[1761530695961,0.15091754,1154.5,1153.2,0.63014094]
[1761530696159,0.15091754,1154.5,1153.1,0.63014094]
[1761530698861,0.15091754,1154.5,1153.2,0.63014094]
[1761530699158,0.15091754,1154.5,1153.1,0.63014094]
[1761530699462,0.64478445,1155.9,1153.7,0.63014094]
[1761530699662,0.1507665,1155.2,1153.7,0.63014094]
[1761530699862,0.64478445,1155.9,1153.7,0.63014094]
[1761530700062,0.15071949,1155.2,1153.7,0.63014094]
[1761530700562,0.64478445,1156.0,1153.9,0.63014094]
[1761530700757,0.15070448,1155.4,1153.9,0.63014094]
[1761530701361,0.15070448,1155.4,1153.7,0.63014094]
[1761530701963,0.64478445,1156.8,1154.3,0.63014094]
[1761530702161,0.15065424,1156.0,1154.3,0.63014094]
[1761530702364,0.15065424,1156.0,1154.2,0.63014094]
[1761530702562,0.64478445,1156.9,1154.2,0.63014094]
[1761530702865,0.15062294,1155.9,1154.3,0.63014094]
[1761530703066,0.64478445,1156.9,1154.2,0.63014094]
[1761530703262,0.15063207,1155.8,1154.2,0.63014094]
[1761530703762,0.64478445,1156.9,1154.2,0.63014094]
[1761530703966,0.15063207,1155.8,1154.2,0.63014094]
[1761530704166,0.64478445,1156.9,1154.2,0.63014094]
[1761530704462,0.15063207,1155.8,1154.1,0.63014094]
[1761530704765,0.15063207,1155.8,1153.8,0.87279503]
[1761530704766,0.64478445,1156.8,1154.2,0.63014094]
[1761530704962,0.15063207,1155.8,1154.2,0.63014094]
[1761530705266,0.64478445,1157.1,1154.0,0.63014094]
[1761530705466,0.15063533,1155.8,1154.0,0.63014094]
[1761530705866,0.64478445,1157.2,1154.0,0.63014094]
[1761530706065,0.15062164,1155.9,1154.0,0.63014094]
[1761530706363,2.170803,1159.6,1152.6,0.874]
[1761530706364,0.64478445,1157.3,1153.9,0.63014094]
[1761530706666,0.15062164,1155.9,1153.9,0.63014094]
[1761530706968,0.64478445,1157.3,1153.9,0.63014094]
[1761530707267,0.15062066,1155.9,1153.9,0.63014094]
[1761530707465,0.64478445,1157.4,1153.9,0.63014094]
[1761530707762,0.15061968,1155.9,1153.9,0.63014094]
[1761530707963,0.64478445,1157.4,1153.9,0.63014094]
[1761530708363,0.64478445,1157.5,1153.8,0.63014094]
[1761530708562,0.15061642,1156.6,1153.8,0.63014094]
[1761530710764,0.15061642,1156.6,1152.6,0.874]
[1761530710765,0.15061642,1156.6,1153.9,0.63014094]
[1761530711364,0.15061642,1156.6,1153.8,0.63014094]
[1761530712970,0.15061642,1156.6,1153.7,0.63014094]
[1761530713971,0.15061642,1156.6,1152.6,0.874]
[1761530713972,0.15061642,1156.6,1153.6,0.63014094]
[1761530714267,0.15061642,1156.6,1153.7,0.63014094]
[1761530715268,0.15061642,1156.6,1153.6,0.63014094]
[1761530715769,0.15061642,1156.6,1153.8,0.63014094]
[1761530716773,0.15061642,1156.6,1153.7,0.63014094]
[1761530717269,0.15061642,1156.6,1153.6,0.63014094]
[1761530717472,0.15061642,1156.6,1153.5,0.87279503]
[1761530717473,0.15061642,1156.6,1153.7,1.64814094]
[1761530717969,0.15061642,1156.6,1153.7,1.018]
[1761530720373,0.15061642,1156.6,1154.2,0.63014094]
[1761530720572,0.15061642,1156.6,1154.1,0.63014094]
[1761530720774,0.15061642,1156.6,1153.8,0.63014094]
[1761530721071,0.15061642,1156.6,1153.9,0.63014094]
[1761530721374,0.15061642,1156.6,1153.7,1.64814094]
[1761530721675,0.15061642,1156.6,1153.7,1.018]
[1761530726877,0.79540087,1156.6,1153.7,1.018]
[1761530727278,0.64478445,1156.4,1153.7,1.018]
[1761530727475,0.64478445,1156.3,1153.7,1.018]
[1761530727678,0.64478445,1156.2,1153.7,1.018]
[1761530728877,0.64478445,1156.3,1153.7,1.018]
[1761530729379,0.64478445,1156.4,1153.7,1.018]
[1761530729677,0.79540087,1156.6,1153.7,1.018]
[1761530729873,0.64478445,1156.5,1153.7,1.018]
[1761530730473,0.79540087,1156.6,1153.7,1.018]
[1761530730674,0.15061642,1156.6,1153.7,1.018]
[1761530731573,0.64478445,1156.3,1153.7,1.018]
[1761530732277,0.64478445,1156.2,1153.7,1.018]
[1761530732678,0.64478445,1156.1,1153.7,1.018]
[1761530732977,0.64478445,1156.5,1153.7,1.018]
[1761530733174,0.64478445,1156.4,1153.7,1.018]
[1761530734277,0.64478445,1156.0,1153.7,1.018]
[1761530734778,0.64478445,1155.9,1153.7,1.018]
[1761530735074,0.64478445,1155.8,1153.7,1.018]
[1761530735474,0.64478445,1155.7,1153.7,1.018]
[1761530735673,0.64478445,1155.9,1153.7,1.018]
[1761530735875,0.64478445,1155.7,1153.7,1.018]
[1761530736276,0.15061642,1156.6,1153.7,1.018]